Cogmind - Beta 13 @@@ ROGUE MODE // 2024.05.31 @ 23:19:51 Player: CONM Result: Destroyed by H-55 Commando with Assault Rifle Performance ------------- Evolutions (2) 1000 Regions Visited (3) 600 Robots Destroyed (22) 110 Value Destroyed (553) 553 Prototype IDs (10) 200 Alien Tech Used (0) 0 Bonus (0) 0 TOTAL SCORE: 2463 Bonus ------- None Cogmind --------- Core Integrity 0/550 Matter 229/300 Energy 33/200 System Corruption 0% Temperature Cool (9) Movement Core (700) Ox13 Location -8/Materials Parts ------- > --- POWER (1) -------- Subdweller Power Source > --- PROPULSION (4) --- (None) > --- UTILITY (4) ------ Large Storage Unit Advanced Weight Redist. System Gun Armor > --- WEAPON (2+2) ----- Heavy Particle Cannon Heavy Assault Rifle Subdweller Machine Gun (+) > --- INVENTORY (15) --- Humpback Medium Matter Pod (38) Hacking Suite Datajack Peak State ------------ > --- POWER ------------ Subdweller Power Source > --- PROPULSION ------- (None) > --- UTILITY ---------- Large Storage Unit Advanced Weight Redist. System Gun Armor > --- WEAPON ----------- Heavy Particle Cannon Heavy Assault Rifle Subdweller Machine Gun > --- INVENTORY -------- Humpback Medium Matter Pod Hacking Suite Datajack [Rating: 22] Favorites ----------- Power Ion Engine Engine Ion Engine Propulsion Light Treads Treads Light Treads Leg Aluminum Leg Wheel Wheel Utility Large Storage Unit Device Structural Scanner Storage Large Storage Unit Hackware Hacking Suite Protection Scrap Shield Weapon Light Assault Rifle Energy Gun Subdweller Laser Energy Cannon Subdweller Beam Cannon Ballistic Gun Light Assault Rifle Special Weapon Flamer Special Melee Weapon Datajack Build | -11 -10 -10 -8 ------- Run | Yrd Mat Sub Mat Slots Evolved 4 | . . . 4 Power . | . . . . Propulsion 2 | . . . 2 Utility 2 | . . . 2 Weapon . | . . . . Parts Attached 47 | 7 13 14 13 Power 8 | 1 3 2 2 Engine 8 | 1 3 2 2 Core . | . . . . Reactor . | . . . . Propulsion 13 | 2 5 3 3 Treads 7 | . 4 . 3 Leg 3 | 2 1 . . Wheel 3 | . . 3 . Hover . | . . . . Flight . | . . . . Utility 10 | 2 3 . 5 Device 3 | 1 1 . 1 Storage 4 | 1 2 . 1 Processor . | . . . . Hackware 1 | . . . 1 Protection 2 | . . . 2 Artifact . | . . . . Weapon 16 | 2 2 9 3 Energy Gun 1 | . . 1 . Energy Cannon 2 | . . 1 1 Ballistic Gun 10 | 2 1 5 2 Ballistic Cannon . | . . . . Launcher . | . . . . Special Weapon 1 | . . 1 . Impact Weapon . | . . . . Slashing Weapon . | . . . . Piercing Weapon . | . . . . Special Melee Weapon 2 | . 1 1 . Unidentified Prototypes . | . . . . Parts Lost 12 | . 1 2 9 Power 3 | . 1 1 1 Propulsion 4 | . . . 4 Utility 3 | . . 1 2 Weapon 2 | . . . 2 Highest Loss Streak 9 | . 1 1 9 To Critical Strikes . | . . . . Average Slot Usage (%) 91 | . 100 90 48 Engine 13 | . 14 13 7 Treads 15 | . 19 14 8 Leg 3 | . 8 . . Wheel 5 | . . 9 3 Device 10 | . 14 9 . Storage 13 | . 14 14 11 Energy Gun 1 | . . 2 4 Energy Cannon 4 | . . 7 1 Ballistic Gun 13 | . 22 9 6 Special Melee Weapon 7 | . 5 8 . Naked Turns . | . . . . Heaviest Build 47 | 11 30 35 47 Greatest Support 60 | 20 40 40 60 Greatest Overweight (x) 8 | . . 3 8 Average Overweight (x) . | . . 1 2 Largest Inventory Capacity 15 | 8 15 15 15 Average Capacity 12 | 6 9 15 15 Most Carried 15 | 6 10 15 15 Average Carried 11 | 3 9 14 10 Final Capacity 15 | 8 15 15 15 Final Carried 15 | 6 10 15 5 Class Distribution -------------------- 100% | Mutant Dominant Class ---------------- Mutant | -10/Materials Mutant | -10/Subcaves Mutant | -8/Materials Resources | -11 -10 -10 -8 ----------- Run | Yrd Mat Sub Mat Matter Collected 899 | 206 311 368 14 Remotely . | . . . . Salvage Created 694 | 21 474 126 73 Parts 51 | 3 33 9 6 Haulers Intercepted 1 | . 1 . . Recyclers Shooed . | . . . . Parts Field Recycled . | . . . . Retrieved Matter . | . . . . Parts Self-Destructed 3 | . . 3 . Prevented . | . . . . Kills | -11 -10 -10 -8 ------- Run | Yrd Mat Sub Mat Combat Hostiles Destroyed 18 | . 14 3 1 Guns 16 | . 14 2 . Cannons 2 | . . 1 1 Classes Destroyed 6 | 1 4 1 . Tunneler 1 | 1 . . . Hauler 1 | . 1 . . Operator 2 | . 1 . 1 Swarmer 6 | . 6 . . Grunt 9 | . 8 . 1 Subdweller 3 | . . 3 . Best Kill Streak 5 | 1 5 1 1 Combat Bots Only 5 | . 5 1 1 Max Kills in Single Turn 1 | 1 1 1 1 Gunslinging . | . . . . Exploded . | . . . . Melee . | . . . . Uniques/NPCs Destroyed . | . . . . Combat | -11 -10 -10 -8 -------- Run | Yrd Mat Sub Mat Hostile Shots Fired 240 | . 64 25 151 Missed 67 | . 23 8 36 Damage Taken 2701 | . 425 508 1768 Core 717 | . 65 101 551 Absorbed by Shields . | . . . . Core Remaining (%) 66 | 100 . 33 . Volleys Fired 111 | 8 63 30 10 Largest 3 | 2 2 2 3 Hottest 128 | 40 40 125 128 Shots Fired 191 | 16 109 45 21 Gun 182 | 16 109 39 18 Cannon 8 | . . 5 3 Launcher . | . . . . Special 1 | . . 1 . Kinetic 171 | 16 109 35 11 Thermal 20 | . . 10 10 Explosive . | . . . . Electromagnetic . | . . . . Robot Hit Streak 14 | 4 12 14 11 Robot Miss Streak 4 | 1 4 2 3 Penetration Max . | . . . . Secondary Targets 3 | . 3 . . Max Gunslinging Chain 1 | . 1 . . Shots Hit Robots 123 | 11 73 25 14 Core Hits 46 | 3 32 5 6 Critical Kills . | . . . . Critical Parts Destroyed . | . . . . Critical Strikes . | . . . . Melee Attacks 3 | . 3 . . Impact . | . . . . Slashing . | . . . . Piercing . | . . . . Sneak Attacks 3 | . 3 . . Combat Hostiles . | . . . . Follow-up Attacks . | . . . . Damage Inflicted 1443 | 101 664 425 253 Guns 1284 | 101 664 341 178 Cannons 159 | . . 84 75 Explosions . | . . . . Melee . | . . . . Ramming . | . . . . Kinetic 1183 | 101 664 341 77 Thermal 260 | . . 84 176 Explosive . | . . . . Electromagnetic . | . . . . Impact . | . . . . Slashing . | . . . . Piercing . | . . . . Highest Corruption . | . . . . Average Corruption . | . . . . Corruption Purged . | . . . . Corruption Blocked . | . . . . Overload Shots . | . . . . Overflow Damage . | . . . . Projectiles . | . . . . Explosions . | . . . . Melee . | . . . . Knockbacks . | . . . . Impact . | . . . . Kinetic . | . . . . Secondary . | . . . . Self-Inflicted Damage . | . . . . Shots . | . . . . Rammed . | . . . . Targets Rammed . | . . . . Kicked . | . . . . Crushed . | . . . . Highest Temperature 88 | . 25 22 88 Average Temperature 17 | . 10 12 27 Received Heat Transfer 879 | . 168 54 657 Siege Activations . | . . . . Robots Corrupted . | . . . . Combat Hostiles . | . . . . Parts Fried . | . . . . Impact Corruptions . | . . . . Robots Melted . | . . . . Combat Hostiles . | . . . . Parts Melted . | . . . . Heat Transferred 347 | . . 111 236 Parts Sabotaged . | . . . . Parts Stolen . | . . . . Parts Stripped . | . . . . Power Chain Reactions . | . . . . Alert | -11 -10 -10 -8 ------- Run | Yrd Mat Sub Mat Peak Influence 209 | 5 209 . 45 Initial 3 | . 3 . . Average 63 | . 78 . 11 Maximum Alert Level 1 | . 1 . . Low Security (%) 97 | 100 97 . 100 Level 1 2 | . 2 . . Level 2 . | . . . . Level 3 . | . . . . Level 4 . | . . . . Level 5 . | . . . . High Security . | . . . . Max Security . | . . . . Squads Dispatched 4 | . 3 . 1 Investigation 1 | . 1 . . Extermination . | . . . . Reinforcement 3 | . 2 . 1 Assault . | . . . . Garrison . | . . . . Intercept . | . . . . Searches Triggered . | . . . . Construction Impeded . | . . . . Haulers Reinforced . | . . . . Active Scanning Responses . | . . . . Cargo Convoy Interrupts . | . . . . Stealth | -11 -10 -10 -8 --------- Run | Yrd Mat Sub Mat Distress Signals 4 | . 3 . 1 Communications Jammed . | . . . . Distress Signals . | . . . . Times Spotted 40 | . 27 5 8 Peak Tracking Total 5 | . 5 2 5 Tactical Retreats . | . . . . Traps | -11 -10 -10 -8 ------- Run | Yrd Mat Sub Mat Traps Triggered 3 | . 1 2 . Indirectly . | . . . . Trap Hack Attempts 36 | . 4 32 . Triggered . | . . . . Disarmed 1 | . 1 . . Reprogrammed 1 | . . 1 . Reused . | . . . . Traps Extracted . | . . . . Installed . | . . . . Triggered . | . . . . Machines | -11 -10 -10 -8 ---------- Run | Yrd Mat Sub Mat Machines Disabled 1 | . . 1 . Max in Single Turn 1 | . . 1 . Machines Repaired . | . . . . Machines Dismantled . | . . . . Machines Sabotaged . | . . . . Overloaded Fab Kills . | . . . . Hacking | -11 -10 -10 -8 --------- Run | Yrd Mat Sub Mat Machines Accessed 5 | . 4 1 . Terminals 4 | . 4 . . Fabricators . | . . . . Repair Stations . | . . . . Recycling Units . | . . . . Scanalyzers . | . . . . Garrison Access . | . . . . Total Hacks 7 | . 6 1 . Successful 2 | . 1 1 . Failed 5 | . 5 . . Catastrophic 2 | . 2 . . Database Lockouts . | . . . . Manual 6 | . 6 . . Terminals 6 | . 6 . . Fabricators . | . . . . Repair Stations . | . . . . Recycling Units . | . . . . Scanalyzers . | . . . . Garrison Access . | . . . . Terminal Hacks 2 | . 1 1 . Terminal Index 1 | . 1 . . Derelict Proto ID Bank 1 | . . 1 . Fabricator Hacks . | . . . . Repair Station Hacks . | . . . . Recycling Unit Hacks . | . . . . Scanalyzer . | . . . . Garrison Access Hacks . | . . . . Unauthorized Hacks . | . . . . Terminals . | . . . . Fabricators . | . . . . Repair Stations . | . . . . Recycling Units . | . . . . Scanalyzers . | . . . . Garrison Access . | . . . . Data Cores Recovered . | . . . . Used . | . . . . Hacking Detections 4 | . 4 . . Full Trace Events . | . . . . Feedback Events . | . . . . Feedback Blocked . | . . . . Robot Schematics Acquired . | . . . . Robots Built . | . . . . Authchips . | . . . . Time . | . . . . Total Robot Build Rating . | . . . . Part Schematics Acquired . | . . . . Parts Built . | . . . . Authchips . | . . . . Time . | . . . . Total Part Build Rating . | . . . . Parts Repaired . | . . . . Time . | . . . . Parts Recycled . | . . . . Recycled Matter . | . . . . Retrieved Matter . | . . . . Retrieved Components . | . . . . Parts Scanalyzed . | . . . . Part Schematics Acquired . | . . . . Parts Damaged . | . . . . Bothacking | -11 -10 -10 -8 ------------ Run | Yrd Mat Sub Mat Used RIF Installer . | . . . . Robots Hacked 1 | . 1 . . Non-combat 1 | . 1 . . Combat . | . . . . Robot Hacks Applied 1 | . 1 . . no_distress 1 | . 1 . . Relay Couplers Released . | . . . . Fabnet Peak Effective % . | . . . . Robots Rewired . | . . . . Allies Hacked . | . . . . Hacks Repelled . | . . . . Allies | -11 -10 -10 -8 -------- Run | Yrd Mat Sub Mat Total Allies . | . . . . Largest Group . | . . . . Highest-Rated Group . | . . . . Highest-Rated Ally . | . . . . Total Orders . | . . . . Ally Attacks . | . . . . Total Damage . | . . . . Kills . | . . . . Allies Corrupted . | . . . . Allies Melted . | . . . . Intel | -11 -10 -10 -8 ------- Run | Yrd Mat Sub Mat Robot Analysis Total . | . . . . Derelict Logs Recovered 1 | . . 1 . Drone Launches . | . . . . Drone Recoveries . | . . . . Exploration | -11 -10 -10 -8 ------------- Run | Yrd Mat Sub Mat Turns Passed 3705 | 135 1277 2079 214 Spaces Moved 2247 | 87 672 1388 100 Core 19 | 9 . . 10 Treads 1081 | . 427 618 36 Legs 323 | 78 245 . . Wheels 824 | . . 770 54 Hover . | . . . . Flight . | . . . . Fastest Speed 50 | 50 120 107 110 Average Speed 139 | 112 145 136 161 Slowest Speed 450 | 120 160 160 450 Overloaded Moves . | . . . . Propulsion Burnouts . | . . . . Robots Hopped . | . . . . Cave-ins Triggered . | . . . . Exploration Rate (%) 32 | 5 80 37 8 Regions Visited 3 Branch Regions 1 Pre-discovered Areas 1 | . . 1 . Known Exits Taken . | . . . . Unknown Exits Taken 3 | 1 1 1 . Scrap Searched 3 | . . 3 . Spaces Dug . | . . . . Terrain Destroyed . | . . . . Melee . | . . . . Projectile . | . . . . AOE . | . . . . Terrain Rammed . | . . . . Walls Destroyed . | . . . . Machines Disabled . | . . . . Actions | -11 -10 -10 -8 --------- Run | Yrd Mat Sub Mat Total 2656 | 108 887 1526 135 Wait 151 | . 96 46 9 Move 2244 | 86 671 1387 100 Hop . | . . . . Pick Up 30 | 7 17 6 . Fast Attach 20 | 6 3 7 4 Attach 11 | 1 1 . 9 Detach 1 | . . . 1 Swap 16 | . 9 7 . Drop 33 | . 20 11 2 Fire 111 | 8 63 30 10 Melee 3 | . 3 . . Ram . | . . . . Kick . | . . . . Crush . | . . . . Escape Stasis . | . . . . Rewire . | . . . . Trap 36 | . 4 32 . Miscellaneous . | . . . . Route ------- -11/Scrapyard -10/Materials (discovered 2 exits: [*Min] / *Sub) -10/Subcaves (discovered 2 exits: [*Mat] / [Rec]) -8/Materials History --------- Turn | Location | Event 11 | -11/Scrapyard | Discovered new exit (range 15) 136 | -11/Scrapyard | Entered Materials 308 | -10/Materials | Build established: Mutant 595 | -10/Materials | Discovered new exit (range 9) 1213 | -10/Materials | Discovered new exit (range 6) 1413 | -10/Materials | Entered Subcaves 1435 | -10/Subcaves | Shifting Twisted Machinery released Sub. Optics 1440 | -10/Subcaves | Shifting Twisted Machinery released Sub. Beam Cannon 1495 | -10/Subcaves | A swath of the cavern ceiling suddenly collapsed 1662 | -10/Subcaves | Learned location of Storage (-7) 2548 | -10/Subcaves | Discovered new exit (range 16) 2743 | -10/Subcaves | Core integrity fell below 50% 2967 | -10/Subcaves | Visited 4L-MR0's lab 3140 | -10/Subcaves | Found Gun Armor 3471 | -10/Subcaves | Discovered new exit (range 8) 3492 | -10/Subcaves | A swath of the cavern ceiling suddenly collapsed 3492 | -10/Subcaves | Entered Materials 3492 | -8/Materials | Evolved 4 slots: Propulsion x2, Utility x2 3677 | -8/Materials | Core integrity fell below 50% 3693 | -8/Materials | Lost 9 parts (1p4n2u2w) 3697 | -8/Materials | Core integrity fell below 20% 3704 | -8/Materials | Attached Gun Armor, gained temporary slots: Weapon x2 3706 | -8/Materials | Destroyed by H-55 Commando with Assault Rifle Last Messages --------------- 03632_ Penetrated by Slug. 03632_ Lgt. Treads destroyed. 03656_ Processing Tank disabled. 03662_ Lgt. Ion Engine destroyed. 03667_ Slug penetrates Wall. 03674_ Critical hit (Burn: +37). 03678_ Acquired Hvy. Particle Cannon. 03678_ Slug penetrates G-47 Trooper. 03678_ Terminal disabled. 03684_ Acquired Adv. Weight Redist. System. 03684_ Penetrated by Slug. 03687_ Slug penetrates G-47 Trooper. 03690_ Penetrated by Slug. 03691_ G-47 Trooper destroyed. 03693_ Penetrated by Slug. 03700_ Slug penetrates Processing Tank. 03703_ Penetrated by Slug. 03704_ Core temporarily expanded with Weapon slot. 03706_ Penetrated by Slug. [Achievement: Back For More] Map ----- +----------------------------------------------------+ | ?????????????????????????????????????????????????? | | ?????????????????????????????????????????????????? | | ?????????????????????????????????????????????????? | | ?????????????????????????????????????????????????? | | ?????????????????????????????????????????????????? | | ??????????????############???????????????????????? | | ??????????????# # #???????????????????????? | | ??????????????# # """ #???????????????????????? | | ??????????????# # """ #???????????????????????? | | ??????????????# +]""" #???????????????????????? | | ??????????????# # = * #???????????????????????? | | ??????????????# # ="T" #???????????????????????? | | ??????????????# ########???????????????????????? | | ??????????????# #??????????????????????????????? | | ??????????????# #??????????????????????????????? | | ??????????????# #??????????????????????????????? | | ############### #############??????????????????? | | ???????????????????? | | ???????????????????? | | ???????????????????? | | ############### ############???????????????????? | | ??????????????# # g #????????????????????? | | ??????????????# # w% " #????????????????????? | | ??????????????# + "h #????????????????????? | | ??????????????#^ # "" #????????????????????? | | ??????????????# # """ @ #????????????????????? | | ??????????????# # """ #????????????????????? | | ??????????????# # "" g #????????????????????? | | ??????????????# # r * #????????????????????? | | ??????????????# ####/######????????????????????? | | ??????????????+ #??# ??????????????????????????? | | ??????????????# #??#???????????????????????????? | | ??????????????# #??????????????????????????????? | | ??????????????# #??????????????????????????????? | | ??????????????# #??????????????????????????????? | | ??????????????# ???????????????????????????????? | | ??????????????# ???????????????????????????????? | | ??????????????? ???????????????????????????????? | | ?????????????????????????????????????????????????? | | ?????????????????????????????????????????????????? | | ?????????????????????????????????????????????????? | | ?????????????????????????????????????????????????? | | ?????????????????????????????????????????????????? | | ?????????????????????????????????????????????????? | | ?????????????????????????????????????????????????? | | ?????????????????????????????????????????????????? | | ?????????????????????????????????????????????????? | | ?????????????????????????????????????????????????? | | ?????????????????????????????????????????????????? | | ?????????????????????????????????????????????????? | +----------------------------------------------------+ Best States ------------- Heat Dissipation 31 Energy Generation 15 Energy Capacity 250 Matter Stores 345 Matter Capacity 400 Sight Range 16 Terrain Scan Density 10 Additional Mass Support 9 Armor Coverage 800 Evasion (%) 55 Recoil Reduction 3 Offensive Hacking 10 Item Schematics ----------------- None Robot Schematics ------------------ None Fabricated ------------ Nothing Alien Tech Used ----------------- None Achievements -------------- Back For More Hehehe Challenges ------------ None Game ------ Seed CentriumContainmentChip Manual? 0 Play Time 00:34:01 Cumulative 25.7 hours Start 2024.05.31 @ 22:37:43 End 2024.05.31 @ 23:19:51 Sessions 1 Manual Loads 0 Difficulty Rogue Special Mode None Game No. 50 Rogue 50 Adventurer 0 Explorer 0 Win Type - Total 0 Types 0/0/0/0/0/0/0/0/0 Lore% 20 Gallery% 20 Achievement% 24 Wizard Run 0 Options --------- Layout 0 ASCII 0 Keyboard 0 Movement Arrows Keybinds 0 Fullscreen 2 Font 18/Terminus Map View 38x25 Zoom Use 17% Tactical HUD 1 Map Filters NONE Filters NONE Steam 1 RUN: d7ffb2f8-4741-4625-978a-ffb1613f067f